[Event "XII Cracow ICC-A 2024"]
[Site "Krakow"]
[Date "2024.06.25"]
[Round "5.6"]
[White "Petrovic, Aleksa"]
[Black "Kosakowski, Jakub"]
[Result "0-1"]
[ECO "D02"]
[WhiteElo "2303"]
[BlackElo "2480"]
[Annotator "TA"]
[PlyCount "134"]
[EventDate "2024.06.20"]
[EventType "swiss"]
[EventCountry "POL"]
[SourceTitle "playchess.com"]
[Source "ChessBase"]
[SourceQuality "1"]
[TimeControl "40/5400+30:1800+30"]

{[%evp 11,134,11,0,0,5,0,71,68,89,90,157,75,60,57,66,74,98,106,94,95,90,47,29,22,6,18,16,0,0,0,0,0,0,0,0,13,8,-17,-8,-62,-62,-86,-44,-69,0,-51,-55,-50,-42,-89,-59,-130,-127,-114,-120,-119,-91,-146,-128,-127,-136,-188,-188,-179,-171,-193,-193,-186,-174,-219,-221,-530,-600,-588,-583,-556,-553,-646,-645,-685,-644,-645,-645,-642,-627,-641,-641,-641,-641,-641,-641,-620,-587,-735,-459,-1383,-1355,-1384,-1177,-29968,-29967,-29966,-29970,-29973,-29974,-29974,-29975,-29980,-29981,-29981,-29982,-29982,-29983,-29983,-29984,-29984,-29985,-29985,-29986,-29985,-29983,-29983,-29984,-29982,-29983]} 1. d4 {[%emt 0:00:04]} Nf6 {[%emt 0:00:11]} 2. Nf3 {[%emt 0:00:05]} d5 {[%emt 0:00:11]} 3. g3 {[%emt 0:02:54]} Bf5 {[%emt 0:06:31]} 4. Bg2 {[%emt 0:02:06]} h6 {[%emt 0:00:35]} 5. c4 {[%emt 0:04:17]} e6 {[%emt 0:04:12]} 6. Nc3 {[%emt 0:07:45]} c6 {[%emt 0:01:22]} 7. Qb3 {[%emt 0:04:13]} Qb6 {[%emt 0:01:00]} 8. c5 {[%emt 0:00:55]} Qa6 {[%emt 0:01:36]} (8... Qxb3 $11 9. axb3 Nbd7) 9. Bf1 $1 $16 {[%emt 0:22:17][%cal Oe2e4] Black must now prevent e4! White is better.} b5 {[%emt 0:00:28] [#]} 10. a4 $1 {[%emt 0:02:59]} Nbd7 {[%emt 0:02:10] [#]} (10... bxa4 $142 11. Rxa4 (11. Nxa4 Be4 $16) (11. Qxa4 Qxa4 12. Nxa4 Nbd7 $14) 11... Qc8) 11. Ra2 {[%emt 0:02:45]} ({White should try} 11. Qa2 $1) 11... bxa4 {[%emt 0:04:22]} 12. Rxa4 {[%emt 0:02:19]} Qc8 {[%emt 0:00:09][%cal Oe6e5]} 13. Qa2 {[%emt 0:04:07]} Ne4 {[%emt 0:03:54]} 14. Rxa7 {[%emt 0:02:46]} Rxa7 {[%emt 0:03:32]} 15. Qxa7 {[%emt 0:00:05]} g5 {[%emt 0:03:20][%cal Bg7g5,Bg5g4][%mdl 32]} 16. h4 {[%emt 0:09:48]} g4 {[%emt 0:02:15]} 17. Nd2 {[%emt 0:00:05]} Nxd2 {[%emt 0:00:40]} 18. Bxd2 {[%emt 0:00:07][%cal Oe2e4] aiming for e4!} (18. Kxd2 Bg7 19. e4 dxe4) 18... Bg7 {[%emt 0:00:06]} 19. Be3 {[%emt 0:08:32]} e5 {[%emt 0:04:11]} 20. dxe5 {[%emt 0:10:12]} Nxe5 {[%emt 0:01:18]} 21. Bg2 {[%emt 0:01:02]} O-O {[%emt 0:05:50]} 22. O-O {[%emt 0:00:04]} Nc4 {[%emt 0:00:19][%cal Od5d4] Threatens to win with ...d4!} 23. Bc1 {[%emt 0:00:29]} Qe6 {[%emt 0:00:55]} 24. e4 {[%emt 0:03:26]} dxe4 {[%emt 0:01:26]} 25. Re1 {[%emt 0:00:09]} (25. Qa4 $11) 25... Ne5 $15 {[%emt 0:00:15] And now ...Nd3 would win.} 26. Rd1 {[%emt 0:02:14]} Nd3 {[%emt 0:18:35] Hoping for ...Nxc1.} 27. Be3 {[%emt 0:02:10]} Qb3 {[%emt 0:11:45] Against Qb7} (27... Nxb2 $15 28. Rd6 Qe8) 28. Qa4 {[%emt 0:01:52]} (28. Qb6 $11 Qxb6 (28... Qxb2 29. Bxe4 Bxe4 30. Nxe4 $11) 29. cxb6 Nxb2 30. Rc1) 28... Qxa4 {[%emt 0:07:29]} (28... Qxb2 29. Nxe4 (29. Bxe4 Bxe4 30. Nxe4 Ne5 $14) 29... Ne5 30. Kh2 $18) 29. Nxa4 {[%emt 0:00:02]} h5 $36 {[%emt 0:00:50][%mdl 2048] Black has good play.} (29... Bxb2 $2 30. Rxd3 (30. Nxb2 Nxb2 31. Rd6 Nc4 $11) 30... exd3 31. Nxb2 $18) 30. Rd2 {[%emt 0:01:51]} (30. b3 $15 {was preferrable.}) 30... Ra8 {[%emt 0:00:53] Black converts the advantage convincingly.} 31. Nc3 {[%emt 0:01:02]} (31. Nb6 $15 Ra1+ 32. Kh2) 31... Bxc3 $17 {[%emt 0:03:56]} 32. bxc3 {[%emt 0:00:02]} Ra1+ {[%emt 0:00:09]} 33. Kh2 {[%emt 0:00:30]} f6 {[%emt 0:03:40]} 34. Re2 {[%emt 0:01:53]} (34. Bd4 $142) 34... Kf7 {[%emt 0:01:19]} 35. c4 {[%emt 0:01:55]} Bg6 {[%emt 0:01:19] Black has more active pieces.} 36. Bd4 {[%emt 0:00:41]} (36. Rc2 $17 {was called for.}) 36... Rc1 $19 {[%emt 0:00:14]} 37. Ra2 {[%emt 0:00:38]} Rxc4 {[%emt 0:02:32]} 38. Ra7+ {[%emt 0:00:09]} Ke6 {[%emt 0:00:03]} 39. Be3 {[%emt 0:00:22]} Nxc5 {[%emt 0:00:42]} 40. Rg7 {[%emt 0:00:55]} Bf7 {[%emt 0:02:21]} 41. Bxc5 $2 {[%emt 0:03:17]} (41. Rh7 {is tougher.}) 41... Rxc5 {[%emt 0:00:20]} 42. Bxe4 {[%emt 0:00:05][%mdl 4096] Endgame. KRB-KRB} f5 {[%emt 0:01:23]} 43. Bg2 {[%emt 0:02:42]} Rc2 {[%emt 0:03:24][%cal Oc6c5]} 44. Kg1 {[%emt 0:06:49]} Rc1+ {[%emt 0:02:34]} 45. Kh2 {[%emt 0:00:03]} Kf6 {[%emt 0:01:28]} 46. Rh7 {[%emt 0:00:14]} c5 {[%emt 0:03:38]} 47. Rh6+ {[%emt 0:01:24]} Bg6 {[%emt 0:04:51] ( -> ...Kg7)} 48. Rh8 {[%emt 0:00:13]} c4 {[%emt 0:00:38]} 49. Rc8 {[%emt 0:00:35]} c3 {[%emt 0:01:04]} 50. Rc6+ {[%emt 0:00:32]} Kg7 {[%emt 0:00:07]} 51. Rc7+ {[%emt 0:00:13]} Kf8 {[%emt 0:00:06]} 52. Rc6 {[%emt 0:01:59]} Be8 {[%emt 0:06:35]} 53. Rf6+ {[%emt 0:03:24]} (53. Rc5 $142 Ke7 54. Ba8) 53... Ke7 {[%emt 0:06:06]} 54. Rxf5 {[%emt 0:00:08]} Bg6 {[%emt 0:00:16]} 55. Re5+ {[%emt 0:02:25]} Kf6 {[%emt 0:00:20] Black mates.} 56. Rc5 {[%emt 0:00:43]} c2 {[%emt 0:00:11]} 57. Rc6+ {[%emt 0:00:33]} Kg7 {[%emt 0:00:18]} 58. Rc7+ {[%emt 0:04:25]} Kh6 {[%emt 0:00:55]} 59. Rc6 {[%emt 0:00:34]} Re1 {[%emt 0:00:31]} 60. Be4 {[%emt 0:00:14]} Rxe4 {[%emt 0:00:06]} ({And not} 60... c1=B 61. Bxg6 (61. Rxg6+ Kh7 $18) 61... Bb2 62. Bd3+ Kg7 63. Rg6+ Kf7 64. Rg5 $18) 61. Rxc2 {[%emt 0:00:10] KRB-KR} Re1 {[%emt 0:00:11]} 62. Rc6 {[%emt 0:00:21]} Kg7 {[%emt 0:00:07]} 63. Rc7+ {[%emt 0:00:36]} Kf8 {[%emt 0:00:10]} 64. Rc8+ {[%emt 0:00:30]} Ke7 {[%emt 0:00:06]} 65. Rc7+ {[%emt 0:00:17]} Kd8 {[%emt 0:00:19]} 66. Rg7 {[%emt 0:00:28]} Be4 {[%emt 0:00:18][%csl Ge4][%cal Re1h1]} 67. f3 {[%emt 0:00:05]} Re2+ {[%emt 0:00:05] Weighted Error Value: White=0.44/Black=0.14 (very precise) .  Mistake:       	White=9     	Black=3      Inaccurate:     	White=1     	Black=2      OK:         	White=12    	Black=13     Best:        	White=2     	Black=8      Strong:       	White=2     	---} ({Not} 67... Bxf3 68. Rd7+ Ke8 69. Rd8+ Kf7 (69... Ke7 70. Re8+ Kxe8 $11) 70. Rf8+ Kg6 71. Rg8+ Kf6 72. Rf8+ Ke7 73. Re8+ Kxe8 $11) 0-1

[Event "XII Cracow ICC-A 2024"]
[Site "Krakow"]
[Date "2024.06.25"]
[Round "5.7"]
[White "Keleberda, Tymur"]
[Black "Mirzoev, Azer"]
[Result "1-0"]
[ECO "C44"]
[WhiteElo "2223"]
[BlackElo "2448"]
[Annotator "TA"]
[PlyCount "124"]
[EventDate "2024.06.20"]
[EventType "swiss"]
[EventCountry "POL"]
[SourceTitle "playchess.com"]
[Source "ChessBase"]
[SourceQuality "1"]
[TimeControl "40/5400+30:1800+30"]

{[%evp 15,124,0,0,0,0,-2,0,0,0,0,0,-26,-32,-45,39,35,40,42,50,45,59,36,155,96,84,94,93,96,99,94,100,98,90,50,47,52,62,29,59,36,36,26,34,37,43,-8,0,0,0,-2,0,-3,0,0,-4,-6,-5,-4,0,-121,-110,-113,0,-50,-53,-294,-287,-330,-330,-326,-319,-331,-315,-344,-356,-396,-392,-424,-377,-414,-380,-362,-364,-1435,-1436,-1297,-1490,-1365,-1378,-1286,-1189,-6015,-4698,-6302,-7335,-29983,-29984,-29984,-29984,-29984,-29985,-29984,-29978,-29988,-29988,-29984,-29985,-29984,-29984,-29982,-29983]} 1. e4 {[%emt 0:00:03]} e5 {[%emt 0:03:00][%cal Be7e5,Be5d4][%mdl 32]} 2. Nf3 {[%emt 0:00:06]} Nc6 {[%emt 0:00:18]} 3. Bc4 {[%emt 0:00:07]} Nf6 {[%emt 0:00:05]} 4. d4 {[%emt 0:00:04]} exd4 {[%emt 0:00:11]} 5. e5 {[%emt 0:00:04]} d5 {[%emt 0:00:13]} 6. Bb5 {[%emt 0:00:06]} Nd7 {[%emt 0:00:41]} 7. O-O {[%emt 0:00:08]} Be7 {[%emt 0:00:11]} 8. Bxc6 {[%emt 0:00:06]} bxc6 {[%emt 0:00:04]} 9. Nxd4 {[%emt 0:00:06] C56: Two Knights: 4 d4 exd4 5 0-0 Nxe4.} Nb8 {[%emt 0:00:06]} 10. Nc3 {[%emt 0:00:06]} O-O {[%emt 0:00:08]} 11. Qf3 {[%emt 0:00:29]} a5 {[%emt 0:01:42]} 12. Re1 {[%emt 0:02:00]} Ra6 {[%emt 0:00:14]} 13. Bf4 {[%emt 0:01:14]} c5 {[%emt 0:08:59]} 14. Ndb5 $146 {[%emt 0:02:47][%cal Bd4b5,Bb5c7,Bc7d5,Bd5f4][%mdl 32]} ({Predecessor:} 14. Nde2 d4 15. Nd5 Be6 16. c4 Nd7 17. Bg3 Nb6 18. Nxe7+ Qxe7 19. b3 a4 20. Nf4 Rfa8 21. Rab1 axb3 22. axb3 Ra3 23. Qe4 Qd7 24. Nxe6 fxe6 25. f4 {½-½ Rios Parra,A (2198)-Dominguez Rincon,M (2021) Medellin Flores op 30th 2023 (4)}) 14... d4 {[%emt 0:02:14]} (14... Be6 $15) 15. Nd5 $36 {[%emt 0:07:06][%mdl 2048] White fights for an advantage.} Rg6 {[%emt 0:03:59]} 16. Nbxc7 {[%emt 0:07:47]} Nc6 {[%emt 0:22:23]} 17. c4 {[%emt 0:07:23]} Qd7 {[%emt 0:14:01]} 18. Bg3 {[%emt 0:02:58]} Bb7 {[%emt 0:25:24]} (18... Nb4 $14) 19. Nxe7+ {[%emt 0:08:13]} (19. h4 $142) 19... Qxe7 $16 {[%emt 0:00:06]} 20. Nd5 {[%emt 0:00:04]} Qd7 {[%emt 0:00:10]} 21. Nf4 $1 {[%emt 0:11:31]} Nb4 {[%emt 0:02:09] Against Qd5} 22. Qd1 {[%emt 0:07:05][%cal Oa2a3] And now a3! would win.} Rb6 {[%emt 0:00:36]} 23. a3 {[%emt 0:01:05]} Na6 {[%emt 0:00:07][%cal Oa6c7]} 24. b3 {[%emt 0:02:09][%cal Oe5e6]} Nc7 {[%emt 0:00:29]} 25. Rb1 {[%emt 0:02:28]} Ra8 {[%emt 0:00:50]} 26. Qh5 {[%emt 0:04:30]} Re8 {[%emt 0:05:53]} 27. h3 {[%emt 0:04:44][%cal Bh2h3,Bh3g4][%mdl 32]} h6 {[%emt 0:00:07]} 28. Qg4 {[%emt 0:02:36]} Qxg4 {[%emt 0:03:18]} ({Don't play} 28... Ne6 29. Nh5 Qc6 30. Bf4 $16) 29. hxg4 {[%emt 0:00:05]} Bc8 {[%emt 0:01:43] [#]} 30. b4 {[%emt 0:13:22]} axb4 $11 {[%emt 0:00:16]} 31. axb4 {[%emt 0:00:04]} Rxb4 {[%emt 0:00:53]} 32. Rxb4 {[%emt 0:00:14]} cxb4 {[%emt 0:00:02]} 33. Nd3 {[%emt 0:06:06]} Bxg4 {[%emt 0:00:37]} (33... b3 {feels hotter.} 34. f3 h5 35. Nc5 b2) 34. Nxb4 {[%emt 0:01:13]} Ne6 {[%emt 0:00:10]} 35. f3 {[%emt 0:00:34]} Bf5 {[%emt 0:00:14]} 36. Rc1 {[%emt 0:05:06]} Nc5 {[%emt 0:01:08]} 37. Bf2 {[%emt 0:00:38] [#]} (37. Rd1 $11 {remains equal.}) 37... Nb3 $1 $17 {[%emt 0:00:49]} 38. Rd1 {[%emt 0:01:27]} Kh7 {[%emt 0:00:40]} ({Black should play} 38... Rc8 $17 39. Nd5 Kf8) 39. c5 {[%emt 0:01:25]} ({Better is} 39. Bxd4 $11 Rc8 40. Be3) 39... Rxe5 $15 {[%emt 0:02:12]} 40. Nc6 $2 {[%emt 0:00:17]} (40. g4 $15) 40... Rxc5 $19 {[%emt 0:00:23]} 41. Nb4 {[%emt 0:13:17]} Rc4 {[%emt 0:01:39]} 42. Nd3 {[%emt 0:00:10]} f6 {[%emt 0:02:34]} 43. Kf1 {[%emt 0:01:17]} h5 {[%emt 0:00:43]} 44. Ke2 {[%emt 0:03:45]} g5 {[%emt 0:02:00]} 45. Ne1 {[%emt 0:00:59]} Kg6 {[%emt 0:01:10]} 46. Nd3 {[%emt 0:00:15]} h4 {[%emt 0:01:11] Hoping for ...Rc3.} 47. Ne1 {[%emt 0:00:14]} Ra4 {[%emt 0:02:42]} 48. Kf1 {[%emt 0:00:57]} Kf7 {[%emt 0:10:30]} 49. Nd3 $2 {[%emt 0:00:29]} (49. f4) 49... Bxd3+ {[%emt 0:03:40]} 50. Rxd3 {[%emt 0:00:07][%mdl 4096] Endgame. KRB-KRN} Ra1+ {[%emt 0:00:21]} 51. Be1 {[%emt 0:00:13]} Rb1 {[%emt 0:00:04]} 52. Kf2 {[%emt 0:06:12]} Ke6 {[%emt 0:00:11]} 53. Bb4 {[%emt 0:00:04]} Kd5 {[%emt 0:01:49] Threatens to win with ...Kc4.} 54. Be7 {[%emt 0:00:09]} Kc4 {[%emt 0:00:06]} 55. Rxb3 {[%emt 0:00:04]} Rxb3 {[%emt 0:00:05]} 56. Bxf6 {[%emt 0:00:09] KR-KB} Rb2+ {[%emt 0:00:06]} 57. Kf1 {[%emt 0:00:06]} Rb5 {[%emt 0:00:04]} 58. Ke2 {[%emt 0:00:37]} Ra5 {[%emt 0:00:30]} 59. Bg7 {[%emt 0:00:22]} Ra2+ {[%emt 0:00:14]} 60. Kf1 {[%emt 0:00:05]} d3 {[%emt 0:00:32]} 61. Bf6 {[%emt 0:00:05]} Kb3 {[%emt 0:00:44]} 62. Bxg5 {[%emt 0:00:08]} Kc2 {[%emt 0:00:44]} 1-0

[Event "XII Cracow ICC-A 2024"]
[Site "Krakow"]
[Date "2024.06.25"]
[Round "5.8"]
[White "Drozdowski, Kacper"]
[Black "Vasynda, Oleksandr"]
[Result "1-0"]
[ECO "B33"]
[WhiteElo "2448"]
[BlackElo "2219"]
[Annotator "TA"]
[PlyCount "57"]
[EventDate "2024.06.20"]
[EventType "swiss"]
[EventCountry "POL"]
[SourceTitle "playchess.com"]
[Source "ChessBase"]
[SourceQuality "1"]
[TimeControl "40/5400+30:1800+30"]

{[%evp 15,57,54,54,46,66,62,62,68,98,93,84,83,86,78,112,112,91,52,286,271,283,262,262,238,428,388,446,441,542,534,517,529,743,548,739,731,732,741,735,723,974,733,987,967]} 1. e4 {[%emt 0:00:03]} c5 {[%emt 0:00:04]} 2. Nf3 {[%emt 0:00:06]} Nc6 {[%emt 0:00:03]} 3. d4 {[%emt 0:00:08]} cxd4 {[%emt 0:00:03]} 4. Nxd4 {[%emt 0:00:05]} Nf6 {[%emt 0:00:02]} 5. Nc3 {[%emt 0:00:13]} g6 {[%emt 0:00:04]} 6. Bc4 {[%emt 0:00:43]} Bg7 {[%emt 0:00:13]} 7. Nxc6 {[%emt 0:00:45]} dxc6 {[%emt 0:01:11]} 8. Qxd8+ {[%emt 0:00:23]} Kxd8 {[%emt 0:00:01]} 9. a4 {[%cal Of2f3,Ba2a4,Ba4a5][%mdl 32]} (9. Bxf7 e6 10. Bg5 Kc7 11. Bf4+ Kd7 $17) 9... Ke8 {[%emt 0:01:12]} 10. a5 {[%emt 0:02:59]} Nd7 {[%emt 0:00:45]} 11. Be3 {[%emt 0:03:01] Dodges Nc5. White is slightly better.} e5 {[%emt 0:02:08]} 12. O-O {[%emt 0:08:54]} Bf8 {[%emt 0:03:29] Inhibits b4.} 13. f4 {[%emt 0:20:35] White has more active pieces.} exf4 {[%emt 0:02:23]} 14. Bxf4 {[%emt 0:00:39]} Bc5+ {[%emt 0:04:36]} 15. Kh1 {[%emt 0:00:25]} f6 {[%emt 0:01:37][%cal Bf7f6,Bf6e5][%mdl 32]} 16. Rad1 {[%emt 0:04:23][%cal Oe4e5] Black is weak on the light squares} (16. e5 {simplifies} Nxe5 17. Rae1 Bb4 18. Bxe5 fxe5 19. Rxe5+ Kd8 20. Rf7) 16... g5 $2 {[%emt 0:04:13] [#] A mistake that costs the game.} (16... Ne5 $14 17. Bb3 Bg4) 17. Bc7 $1 $18 {[%emt 0:06:03][%cal Oe4e5] And now e5! would win.} Rf8 {[%emt 0:08:42] [#]} 18. e5 $1 {[%emt 0:06:01][%mdl 512]} fxe5 {[%emt 0:06:00]} 19. Ne4 {[%emt 0:06:14]} b5 $2 {[%emt 0:08:12]} (19... Be7 20. Rfe1 h6) 20. Be2 {[%emt 0:07:33]} Rxf1+ {[%emt 0:08:45]} 21. Rxf1 {[%emt 0:02:05] White is clearly winning.} h6 {[%emt 0:02:35]} 22. Nd6+ {[%emt 0:03:56]} Bxd6 {[%emt 0:01:42]} 23. Bxd6 {[%emt 0:00:02]} Bb7 {[%emt 0:01:48]} 24. Bh5+ {[%emt 0:00:33] This pair of bishops is nice.} Kd8 {[%emt 0:00:00]} 25. Rf7 {[%emt 0:03:18]} c5 {[%emt 0:00:11]} 26. Bg4 {[%emt 0:00:54]} Bc6 {[%emt 0:00:46]} 27. Rh7 {[%emt 0:03:08] Black must now prevent Rh8+.} Nb8 {[%emt 0:01:24]} 28. Rh8+ {[%emt 0:02:00]} Be8 {[%emt 0:00:09]} 29. Bf3 {[%emt 0:00:20] Weighted Error Value: White=0.12 (very precise) /Black=0.61.  Loses game:     	---       	Black=1      Mistake:       	---       	Black=1      Inaccurate:     	White=1     	Black=4      OK:         	White=4     	Black=3      Best:        	White=2     	---        Strong:       	White=1     	---} 1-0

[Event "XII Cracow ICC-A 2024"]
[Site "Krakow"]
[Date "2024.06.25"]
[Round "5.9"]
[White "Karolczuk, Iwo"]
[Black "Bogdanov, Egor"]
[Result "1/2-1/2"]
[ECO "E61"]
[WhiteElo "2293"]
[BlackElo "2433"]
[Annotator "TA"]
[PlyCount "92"]
[EventDate "2024.06.20"]
[EventType "swiss"]
[EventCountry "POL"]
[SourceTitle "playchess.com"]
[Source "ChessBase"]
[SourceQuality "1"]
[TimeControl "40/5400+30:1800+30"]

{[%evp 20,92,19,13,35,20,12,12,25,18,19,9,23,14,14,25,28,10,10,10,14,-31,-22,-12,-19,-16,-29,-16,0,0,0,0,0,-13,-15,-37,-43,-43,-22,-20,-6,-8,-5,-25,-42,-84,-20,-14,-19,-12,0,0,0,0,0,0,0,-26,-19,-22,-16,-16,0,-18,-18,-47,0,0,0,0,0,0,0,0,0]} 1. d4 {[%emt 0:00:41]} Nf6 {[%emt 0:03:56]} 2. c4 {[%emt 0:00:11]} g6 {[%emt 0:00:31]} 3. Nc3 {[%emt 0:00:14]} Bg7 {[%emt 0:00:08]} 4. g3 {[%emt 0:00:09]} d6 {[%emt 0:00:46]} 5. Bg2 {[%emt 0:00:10]} O-O {[%emt 0:00:08]} 6. Nf3 {[%emt 0:00:06]} Re8 {[%emt 0:00:33]} 7. O-O {[%emt 0:00:12]} Bd7 {[%emt 0:00:31]} 8. e4 {[%emt 0:02:47]} e5 {[%emt 0:06:02]} 9. h3 {[%emt 0:03:54]} exd4 {[%emt 0:10:51]} 10. Nxd4 {[%emt 0:02:04]} Nc6 {[%emt 0:04:14]} 11. Be3 {[%emt 0:01:28]} Nxd4 {[%emt 0:02:16]} 12. Bxd4 {[%emt 0:00:12]} c5 {[%emt 0:00:24]} 13. Be3 {[%emt 0:06:26]} Qc8 {[%emt 0:01:20]} 14. Kh2 {[%emt 0:15:46]} Bc6 {[%emt 0:01:30]} 15. Qc2 {[%emt 0:19:25]} Qe6 {[%emt 0:17:42][%csl LRc4,LRe4]} 16. Nd5 {[%emt 0:00:38]} Rac8 {[%emt 0:01:03][%cal Rf6e4] Against Nc7} 17. Rfe1 {[%emt 0:06:46]} b5 {[%emt 0:04:56]} 18. cxb5 {[%emt 0:08:48]} Bxb5 {[%emt 0:00:59]} 19. Nc3 {[%emt 0:07:06]} Bc6 {[%emt 0:00:40][%cal Rf6e4]} 20. Rad1 {[%emt 0:02:42]} Nxe4 {[%emt 0:07:29]} 21. Bf4 {[%emt 0:14:06]} Bxc3 {[%emt 0:01:50]} 22. bxc3 {[%emt 0:00:11]} Qc4 {[%emt 0:00:46]} 23. Bxe4 {[%emt 0:02:04]} Bxe4 {[%emt 0:19:00]} 24. Qb3 {[%emt 0:00:11]} Qxb3 {[%emt 0:01:57]} 25. axb3 {[%emt 0:00:05]} d5 {[%emt 0:01:52]} 26. Rd2 {[%emt 0:01:58]} Re6 {[%emt 0:00:58]} 27. Ra1 {[%emt 0:00:30]} Rb6 {[%emt 0:00:39]} 28. Ra3 {[%emt 0:00:13]} f6 {[%emt 0:01:17]} 29. g4 {[%emt 0:02:02][%cal Oh2g3]} g5 {[%emt 0:03:05]} 30. Be3 {[%emt 0:00:03][%cal Oh2g3]} Rcb8 {[%emt 0:01:28]} 31. Rb2 {[%emt 0:02:26] [#]} d4 $1 {[%emt 0:00:36]} 32. Bd2 {[%emt 0:00:26]} (32. cxd4 c4) 32... Bd5 {[%emt 0:00:52]} ({Black should try} 32... a5 $17 {Hoping for ...c4.} 33. c4 R6b7 34. Bxa5 Bd3) 33. cxd4 $11 {[%emt 0:00:23]} cxd4 {[%emt 0:00:49]} 34. b4 {[%emt 0:01:36]} Re6 {[%emt 0:02:36]} 35. Rxa7 {[%emt 0:00:36]} Re2 {[%emt 0:00:08]} 36. Kg3 {[%emt 0:00:08]} Bc4 {[%emt 0:01:18]} 37. Rd7 {[%emt 0:00:23]} d3 {[%emt 0:00:20]} 38. Rd4 {[%emt 0:00:21]} Bb5 {[%emt 0:00:12]} 39. Rd5 {[%emt 0:01:10]} Kf7 {[%emt 0:00:28]} 40. Rc5 {[%emt 0:00:33]} Ba4 {[%emt 0:02:36]} 41. Ra2 {[%emt 0:11:18]} Rxb4 {[%emt 0:08:41]} 42. Rd5 {[%emt 0:01:48] Inhibits Rd4.} Rb1 {[%emt 0:03:32]} (42... Rf4 $1 $15 43. Rxd3 Rfxf2 (43... Rexf2 $2 {perishes.} 44. Rxa4 Rxa4 45. Kxf2 $18) 44. Rxa4 Rg2+ 45. Kf3 Rxd2 46. Rxd2 Rxd2) 43. Rxa4 {[%emt 0:01:35] The position is equal.} Rxd2 {[%emt 0:00:32]} 44. Ra7+ {[%emt 0:00:45]} Ke6 {[%emt 0:01:58]} 45. Rad7 {[%emt 0:00:38]} Rb6 {[%emt 0:04:28]} 46. Rxd3 {[%emt 0:00:15]} Rxd3+ {[%emt 0:00:03] Weighted Error Value: White=0.08 (flawless) /Black=0.08 (flawless) .  Mistake:       	---       	Black=2      Inaccurate:     	White=4     	---        OK:         	White=14    	Black=16     Best:        	White=3     	Black=3} 1/2-1/2

[Event "XII Cracow ICC-A 2024"]
[Site "Krakow"]
[Date "2024.06.25"]
[Round "5.10"]
[White "Dziewonski, Dariusz"]
[Black "Kelires, Andreas"]
[Result "1/2-1/2"]
[ECO "B93"]
[WhiteElo "2293"]
[BlackElo "2515"]
[Annotator "RC"]
[PlyCount "106"]
[EventDate "2024.06.20"]
[EventType "swiss"]
[EventCountry "POL"]
[SourceTitle "playchess.com"]
[Source "ChessBase"]
[SourceQuality "1"]
[TimeControl "40/5400+30:1800+30"]

1. e4 {[%emt 0:00:08]} c5 {[%emt 0:00:06]} 2. Nf3 {[%emt 0:00:07]} d6 {[%emt 0:00:05]} 3. d4 {[%emt 0:00:07]} cxd4 {[%emt 0:00:04]} 4. Nxd4 {[%emt 0:00:03]} Nf6 {[%emt 0:00:06]} 5. Nc3 {[%emt 0:00:04]} a6 {[%emt 0:00:04]} 6. f4 {[%emt 0:00:05]} e5 {[%emt 0:00:06]} 7. Nb3 {[%emt 0:00:04]} Bd7 {[%emt 0:00:09]} 8. Bd3 {[%emt 0:03:17]} Be7 {[%emt 0:00:22]} 9. Nd5 {[%emt 0:01:55]} Bc6 {[%emt 0:14:41]} 10. Nxe7 {[%emt 0:11:36]} Qxe7 {[%emt 0:00:09]} 11. fxe5 {[%emt 0:00:26]} dxe5 {[%emt 0:01:56]} 12. O-O {[%emt 0:01:28]} Nbd7 {[%emt 0:03:18]} 13. Qe2 {[%emt 0:04:38]} Qe6 {[%emt 0:25:57]} 14. Bg5 {[%emt 0:10:39]} h6 {[%emt 0:04:20]} 15. Bh4 {[%emt 0:05:23]} Bb5 {[%emt 0:03:22]} 16. Bf2 {[%emt 0:22:42]} Bxd3 {[%emt 0:03:48]} 17. cxd3 {[%emt 0:00:35]} Rc8 {[%emt 0:03:05]} 18. Rac1 {[%emt 0:01:25]} O-O {[%emt 0:01:17]} 19. Rxc8 {[%emt 0:02:26]} Rxc8 {[%emt 0:00:06]} 20. Rc1 {[%emt 0:00:21]} Rxc1+ {[%emt 0:01:43]} 21. Nxc1 {[%emt 0:00:04]} Nb8 {[%emt 0:00:21]} 22. h3 {[%emt 0:05:40]} Nc6 {[%emt 0:00:23]} 23. Qc2 {[%emt 0:01:26]} Ne8 {[%emt 0:13:57]} 24. Qb3 {[%emt 0:01:48]} Qc8 {[%emt 0:01:43]} 25. Qc4 {[%emt 0:01:31]} Nd6 {[%emt 0:02:02]} 26. Qc5 {[%emt 0:02:00]} Nb5 {[%emt 0:03:20]} 27. a4 {[%emt 0:06:37]} Nc7 {[%emt 0:00:17]} 28. Qd6 {[%emt 0:02:57]} Ne6 {[%emt 0:00:54]} 29. Ne2 {[%emt 0:01:36]} Qc7 {[%emt 0:05:51]} 30. Qxc7 {[%emt 0:01:26]} Nxc7 {[%emt 0:00:01]} 31. d4 {[%emt 0:00:28]} exd4 {[%emt 0:00:19]} 32. Nxd4 {[%emt 0:00:22]} Nxd4 {[%emt 0:03:47]} 33. Bxd4 {[%emt 0:00:08]} Ne6 {[%emt 0:00:11]} 34. Be3 {[%emt 0:00:27]} Kf8 {[%emt 0:01:02]} 35. Kf2 {[%emt 0:02:34]} Ke7 {[%emt 0:00:07]} 36. Ke2 {[%emt 0:00:58]} Kd6 {[%emt 0:00:14]} 37. Kd3 {[%emt 0:00:39]} h5 {[%emt 0:02:35]} 38. g3 {[%emt 0:01:49]} g6 {[%emt 0:00:50]} 39. Kc4 {[%emt 0:03:28]} Ke5 {[%emt 0:00:41]} 40. Kd3 {[%emt 0:00:04]} Kd6 {[%emt 0:03:19]} 41. Kc4 {[%emt 0:30:48]} Ke5 {[%emt 0:06:03]} 42. Kd3 {[%emt 0:00:00]} f5 {[%emt 0:02:31]} 43. exf5 {[%emt 0:00:00]} gxf5 {[%emt 0:00:05]} 44. h4 {[%emt 0:00:00]} Kd5 {[%emt 0:03:39]} 45. b4 {[%emt 0:00:00]} b5 {[%emt 0:04:29]} 46. axb5 {[%emt 0:00:00]} axb5 {[%emt 0:00:01]} 47. Bd2 {[%emt 0:00:00]} Nf8 {[%emt 0:00:31]} 48. Be3 {[%emt 0:00:00]} Ng6 {[%emt 0:01:33]} 49. Bf4 {[%emt 0:00:00]} Nf8 {[%emt 0:00:09]} 50. Be3 {[%emt 0:00:00]} Ne6 {[%emt 0:00:14]} 51. Bd2 {[%emt 0:00:37]} Kd6 {[%emt 0:00:29]} 52. Bc3 {[%emt 0:01:39]} Kc6 {[%emt 0:01:10]} 53. Be1 {[%emt 0:00:40]} Kd5 {[%emt 0:00:29]} 1/2-1/2